lending/lending_fUSD_20251121
["ID","MTS","AMOUNT","RATE_DAILY","PERIOD"]
[394548551,1763694631695,-300.0,0.00016698,2]
[394548552,1763694631704,-300.0,0.00016698,2]
[394548553,1763694631714,-166.66,0.00016756,2]
[394548554,1763694631723,-595.9,0.00016771,2]
[394548555,1763694631733,-150.0,0.00016847,2]
[394548556,1763694631743,-550.0,0.00016985,2]
[394548557,1763694631752,-56215.24,0.00016986,2]
[394548558,1763694631762,-250.0,0.00017,2]
[394548559,1763694631771,-166.66,0.00017088,2]
[394548560,1763694631781,-166.66,0.0001742,2]
[394548561,1763694631791,-174.25141657,0.00017446,2]
[394548562,1763694631800,-952.2007,0.00017446,2]
[394548563,1763694631810,-2185.07389015,0.00017446,2]
[394548564,1763694631822,-4289.62500381,0.00017446,2]
[394548565,1763694631834,-2703.53710003,0.00017446,2]
[394548566,1763694631845,-500.0,0.00017446,2]
[394548567,1763694631868,-3678.30622753,0.00017446,2]
[394548568,1763694631879,-1568.89437848,0.00017446,2]
[394548578,1763694632039,-1728.4758,0.00017446,2]
[394548579,1763694632050,-166.66,0.0001745,2]
[394548580,1763694632062,-9999.99,0.0001745,2]
[394548582,1763694632072,-12754.09,0.0001745,2]
[394548583,1763694632081,-12493.66,0.0001745,2]
[394548584,1763694632091,-256.21845576,0.00017484,2]
[394548585,1763694632100,-6496.0,0.00017494,2]
[394548586,1763694632109,-2659.0,0.00017494,2]
[394548587,1763694632118,-520.78715702,0.00017545,2]
[394548588,1763694632128,-500.0,0.00017545,2]
[394548589,1763694632137,-744.0706,0.00017546,2]
[394548590,1763694632147,-500.0,0.00017573,2]
[394548591,1763694632156,-500.0,0.00017573,2]
[394548592,1763694632165,-155.0,0.00017584,2]
[394548593,1763694632174,-9999.99,0.00017584,2]
[394548594,1763694632184,-9999.99,0.00017584,2]
[394548595,1763694632194,-150.99,0.00017584,2]
[394548596,1763694632203,-299.99,0.00017584,4]
[394548597,1763694632213,-11874.92,0.00017584,2]
[394548598,1763694632223,-150.99,0.00017584,2]
[394548599,1763694632232,-177.0,0.00017684,2]
[394548600,1763694632241,-150.0,0.00017685,2]
[394548601,1763694632250,-151.0,0.00017685,2]
[394548602,1763694632259,-150.0,0.00017685,2]
[394548603,1763694632269,-150.0,0.00017685,2]
[394548604,1763694632278,-150.0,0.00017685,2]
[394548605,1763694632287,-150.0,0.00017685,2]
[394548606,1763694632297,-297.274,0.00017685,2]
[394548607,1763694632306,-150.147,0.00017685,2]
[394548608,1763694632316,-609.0,0.00017685,2]
[394548609,1763694632326,-345.86260874,0.00017685,2]
[394548610,1763694632375,-3089.13739126,0.00017685,2]
[394548611,1763694632384,-575.0,0.00017685,2]
[394548612,1763694632394,-1319.0,0.00017685,2]
[394548614,1763694632404,-1601.0,0.00017685,2]
[394548616,1763694632413,-822.0,0.00017685,2]
[394548618,1763694632423,-794.0,0.00017685,2]
[394548620,1763694632432,-1256.0,0.00017685,2]
[394548622,1763694632442,-908.0,0.00017685,2]
[394548624,1763694632451,-1192.0,0.00017685,2]
[394548626,1763694632461,-644.76,0.00017685,2]
[394548628,1763694632471,-151.0,0.00017685,2]
[394548630,1763694632491,-151.0,0.00017685,2]
[394548631,1763694632509,-210.18,0.00017688,2]
[394548633,1763694632519,-420.0,0.00017707,2]
[394548635,1763694632529,-420.0,0.00017707,2]
[394548637,1763694632538,-1680.0,0.00017796,2]
[394548639,1763694632549,-222.0,0.000178,2]
[394548642,1763694632558,-1101.19,0.000178,2]
[394548643,1763694632568,-5143.37844915,0.00017803,2]
[394548645,1763694632578,-160.05462086,0.00017803,2]
[394548646,1763694632588,-1102.70726,0.0001781,2]
[394548647,1763694632597,-5143.37844915,0.00017814,2]
[394548648,1763694632607,-200.0,0.00017819,2]
[394548649,1763694632616,-200.0,0.00017819,2]
[394548650,1763694632626,-200.43996737,0.00017819,2]
[394548651,1763694632635,-300.0,0.00017819,2]
[394548652,1763694632645,-300.0,0.0001782,2]
[394548653,1763694632654,-250.0,0.0001782,2]
[394548654,1763694632664,-300.0,0.0001782,2]
[394548655,1763694632674,-250.0,0.0001782,2]
[394548656,1763694632683,-5143.37844915,0.00017825,2]
[394548657,1763694632692,-5143.37844915,0.00017835,2]
[394548658,1763694632702,-5143.37844915,0.00017846,2]
[394548659,1763694632711,-200.0,0.00017856,2]
[394548660,1763694632720,-5143.37844915,0.00017857,2]
[394548661,1763694632729,-5143.37844915,0.00017868,2]
[394548662,1763694632739,-5143.37844915,0.00017878,2]
[394548663,1763694632748,-5143.37844915,0.00017889,2]
[394548664,1763694632758,-174.25141657,0.000179,2]
[394548665,1763694632768,-5143.37844915,0.000179,2]
[394548666,1763694632778,-200.10210893,0.000179,2]
[394548667,1763694632788,-1703.61654081,0.000179,2]
[394548668,1763694632797,-500.0,0.000179,2]
[394548669,1763694632807,-197.85728736,0.00017902,2]
[394548670,1763694632817,-636.64451805,0.00017902,2]
[394548671,1763694632827,-300.0,0.00017902,2]
[394548672,1763694632837,-500.0,0.00017902,2]
[394548673,1763694632846,-500.0,0.00017902,2]
[394548674,1763694632857,-500.0,0.00017902,2]
[394548675,1763694632866,-162139.18084064,0.00017903,2]
[394548678,1763694637584,-1606.0,0.00017494,2]
[394548679,1763694637594,-3566.79554406,0.00017903,2]
[394548680,1763694637606,-529.39345875,0.00017903,2]
[394548681,1763694637618,-8568.3,0.00017903,2]
[394548682,1763694637640,-21361.92644407,0.00017903,2]
[394548689,1763694639550,-27181.76698797,0.00017903,2]
[394548691,1763694639604,-8609.82720767,0.00017903,2]
[394548692,1763694639660,-2599.36,0.00017903,2]
[394548693,1763694639722,-561.0,0.00017494,2]
[394548694,1763694639731,-3729.1,0.00017903,2]
[394548695,1763694639743,-1719.7885359,0.00017903,2]
[394548696,1763694639754,-469.45341143,0.00017903,2]
[394548697,1763694639765,-320.39585819,0.00017903,2]
[394548698,1763694640040,-2821.28463269,0.00017903,2]
[394548699,1763694640051,-361.3612196,0.00017903,2]
[394548700,1763694640103,-21264.32187429,0.00017903,2]
[394548701,1763694640115,-4348.12435315,0.00017903,2]
[394548702,1763694640163,-436.86530919,0.00017903,2]
[394548745,1763694643733,-151.0,0.00017652,2]
[394548746,1763694643744,-865.6173997,0.00017903,2]
[394548747,1763694643788,-4285.9,0.00017903,2]
[394548748,1763694643800,-8610.30158336,0.00017903,2]
[394548749,1763694643812,-12932.51248902,0.00017903,2]
[394548750,1763694643850,-61867.10340752,0.00017903,2]
[394548751,1763694643860,-38403.77240554,0.00017903,2]
[394548752,1763694643907,-296.943265,0.00017903,2]
[394548760,1763694645588,-5405.47653459,0.00017903,2]
[394548761,1763694645641,-279.19,0.00017903,2]
[394548762,1763694645868,-351.12756,0.00017903,2]
[394548763,1763694645880,-496.49999827,0.00017903,2]
[394548764,1763694663992,5888.0,0.00035616,120]
[394548766,1763694667713,1510.0,0.00035616,120]
[394548773,1763694725831,500.0,0.00041934,30]
[394548774,1763694725895,500.0,0.00041934,30]
[394548775,1763694725939,500.0,0.00041934,30]
[394548776,1763694725985,515.78990418,0.00041934,30]
[394548777,1763694726040,500.0,0.00041934,30]
[394548778,1763694726444,500.0,0.00041934,30]
[394548779,1763694726518,500.0,0.00041934,30]
[394548780,1763694726561,500.0,0.00041934,30]
[394548781,1763694726611,500.0,0.00041934,30]
[394548782,1763694727168,500.0,0.00041934,30]
[394548783,1763694727600,500.0,0.00041934,30]
[394548784,1763694727645,500.0,0.00041934,30]
[394548785,1763694727794,500.0,0.00041934,30]
[394548786,1763694728231,500.0,0.00041934,30]
[394548787,1763694728299,500.0,0.00041934,30]
[394548788,1763694728884,500.0,0.00041934,30]
[394548789,1763694728943,500.0,0.00041934,30]
[394548790,1763694729449,500.0,0.00041934,30]
[394548791,1763694729500,500.0,0.00041934,30]
[394548792,1763694730034,500.0,0.00041934,30]
[394548793,1763694730105,500.0,0.00041934,30]
[394548794,1763694730636,500.0,0.00041934,30]
[394548795,1763694730713,500.0,0.00041934,30]
[394548796,1763694731287,500.0,0.00041934,30]
[394548797,1763694731330,500.0,0.00041934,30]
[394548798,1763694731904,500.0,0.00041934,30]
[394548799,1763694731947,500.0,0.00041934,30]
[394548800,1763694732546,611.74286859,0.00041934,30]
[394548801,1763694732590,500.0,0.00041934,30]
[394548802,1763694733668,500.0,0.00041934,30]
[394548803,1763694733797,500.0,0.00041934,30]
[394548804,1763694734458,500.0,0.00041934,30]
[394548805,1763694734723,595.02271061,0.00041934,30]
[394548806,1763694735081,500.0,0.00041934,30]
[394548807,1763694735732,500.0,0.00041934,30]
[394548808,1763694735885,500.0,0.00041934,30]
[394548809,1763694736387,500.0,0.00041934,30]
[394548810,1763694737036,500.0,0.00041934,30]
[394548811,1763694737694,500.0,0.00041934,30]
[394548812,1763694738318,500.0,0.00041934,30]
[394548813,1763694785864,500.0,0.00041934,30]
[394548814,1763694785904,500.0,0.00041934,30]
[394548815,1763694785943,537.0,0.00041934,30]
[394548816,1763694785988,500.0,0.00041934,30]
[394548817,1763694786616,500.0,0.00041934,30]
[394548818,1763694786661,500.0,0.00041934,30]
[394548819,1763694786922,500.0,0.00041934,30]
[394548820,1763694787084,500.0,0.00041934,30]
[394548821,1763694787185,500.0,0.00041934,30]
[394548822,1763694787685,500.0,0.00041934,30]
[394548823,1763694788364,500.0,0.00041934,30]
[394548824,1763694788979,500.0,0.00041934,30]
[394548825,1763694789576,500.0,0.00041934,30]
[394548826,1763694789631,500.0,0.00041934,30]
[394548827,1763694790195,500.0,0.00041934,30]
[394548828,1763694790269,500.0,0.00041934,30]
[394548829,1763694790842,500.0,0.00041934,30]
[394548830,1763694790912,500.0,0.00041934,30]
[394548831,1763694791401,500.0,0.00041934,30]
[394548832,1763694791610,500.0,0.00041934,30]
[394548833,1763694792145,500.0,0.00041934,30]
[394548834,1763694792204,500.0,0.00041934,30]
[394548835,1763694792814,500.0,0.00041934,30]
[394548836,1763694793440,500.0,0.00041934,30]
[394548837,1763694794112,500.0,0.00041934,30]
[394548838,1763694794696,500.0,0.00041934,30]
[394548839,1763694795331,500.0,0.00041934,30]
[394548840,1763694795965,500.0,0.00041934,30]
[394548841,1763694797034,500.0,0.00041934,30]
[394548850,1763694846036,500.0,0.00041934,30]
[394548851,1763694846639,500.0,0.00041934,30]
[394548852,1763694847282,500.0,0.00041934,30]
[394548853,1763694847885,500.0,0.00041934,30]
[394548854,1763694848390,500.0,0.00041934,30]
[394548855,1763694848440,500.0,0.00041934,30]
[394548856,1763694848531,500.0,0.00041934,30]
[394548857,1763694849600,500.0,0.00041934,30]
[394548858,1763694849651,500.0,0.00041934,30]
[394548859,1763694849706,500.0,0.00041934,30]
[394548860,1763694849805,500.0,0.00041934,30]
[394548861,1763694849948,500.0,0.00041934,30]
[394548862,1763694849998,500.0,0.00041934,30]
[394548863,1763694850313,500.0,0.00041934,30]
[394548864,1763694850390,500.0,0.00041934,30]
[394548865,1763694850948,500.0,0.00041934,30]
[394548866,1763694851009,500.0,0.00041934,30]
[394548867,1763694851563,500.0,0.00041934,30]
[394548868,1763694852179,500.0,0.00041934,30]
[394548869,1763694854237,500.0,0.00041934,30]
[394548870,1763694854857,500.0,0.00041934,30]
[394548871,1763694855966,500.0,0.00041934,30]
[394548872,1763694856641,500.0,0.00041934,30]
[394548873,1763694868945,151.0,0.00041934,50]
[394548874,1763694869232,152.427889,0.00041934,50]
[394548875,1763694910576,500.0,0.00041934,50]
[394548876,1763694911207,500.0,0.00041934,50]
[394548878,1763694911892,500.0,0.00041934,50]
[394548879,1763694912308,500.0,0.00041934,50]
[394548880,1763694913049,500.0,0.00041934,50]
[394548881,1763694913481,500.0,0.00041934,50]
[394548882,1763694913534,500.0,0.00041934,50]
[394548884,1763694935998,154.81535,0.00041934,50]
[394548887,1763694966202,500.0,0.00041934,50]
[394548888,1763694966304,500.0,0.00041934,50]
[394548889,1763694966377,500.0,0.00041934,50]
[394548890,1763694966645,500.0,0.00041934,50]
[394548891,1763694967267,500.0,0.00041934,50]
[394548892,1763694967876,500.0,0.00041934,50]
[394548893,1763694968030,500.0,0.00041934,50]
[394548894,1763694968898,500.0,0.00041934,50]
[394548895,1763694971820,549.86105706,0.00041934,50]
[394548896,1763695025366,2002.45,0.00041934,30]
[394548897,1763695027905,500.0,0.00041934,50]
[394548898,1763695028039,500.0,0.00041934,50]
[394548899,1763695029131,500.0,0.00041934,50]
[394548900,1763695029318,500.0,0.00041934,50]
[394548906,1763695086458,500.0,0.00041936,50]
[394548907,1763695086988,595.06254343,0.00041936,50]
[394548908,1763695087061,500.0,0.00041936,50]
[394548909,1763695088775,500.0,0.00041936,50]
[394548910,1763695088883,500.0,0.00041936,50]
[394548911,1763695089535,518.5,0.00041936,50]
[394548912,1763695089650,500.0,0.00041936,50]
[394548913,1763695090257,518.5,0.00041936,50]
[394548914,1763695090525,500.0,0.00041936,50]
[394548915,1763695090976,500.0,0.00041936,50]
[394548916,1763695097910,6627.30905819,0.00016,2]
[394548925,1763695146452,500.0,0.00041936,50]
[394548926,1763695146501,500.0,0.00041936,50]
[394548927,1763695146954,500.0,0.00041936,50]
[394548928,1763695147074,500.0,0.00041936,50]
[394548929,1763695148211,500.0,0.00041936,50]
[394548930,1763695148639,500.0,0.00041936,50]
[394548931,1763695149308,500.0,0.00041936,50]
[394548932,1763695151877,500.0,0.00041936,30]
[394548933,1763695152779,540.31671778,0.00041936,50]
[394548934,1763695172936,536.19544145,0.00041936,120]
[394548942,1763695203093,500.0,0.00041936,120]
[394548943,1763695209944,500.0,0.00041936,120]
[394548944,1763695210094,500.0,0.00041936,120]
[394548945,1763695210292,500.0,0.00041936,120]
[394548946,1763695210400,504.04,0.00024739,120]
[394548947,1763695210551,500.0,0.00041936,120]
[394548948,1763695210649,500.0,0.00041936,120]
[394548949,1763695211352,500.0,0.00041936,120]
[394548950,1763695211405,500.0,0.00041936,120]
[394548951,1763695212112,500.0,0.00041936,120]
[394548952,1763695212561,500.0,0.00041936,120]
[394548953,1763695212746,500.0,0.00041936,120]
[394548954,1763695213350,500.0,0.00041936,120]
[394548955,1763695214134,500.0,0.00041936,120]
[394548956,1763695214247,500.0,0.00041936,120]
[394548957,1763695214765,500.0,0.00041936,120]
[394548958,1763695214864,500.0,0.00041936,120]
[394548959,1763695220718,500.0,0.00041936,120]
[394548960,1763695221376,500.0,0.00041936,120]
[394548961,1763695221985,500.0,0.00041936,120]
[394548962,1763695222599,500.0,0.00041936,120]
[394548963,1763695223202,500.0,0.00041936,120]
[394548964,1763695224316,500.0,0.00041936,120]
[394548965,1763695224947,500.0,0.00041936,120]
[394548966,1763695225558,500.0,0.00041936,120]
[394548968,1763695236498,1552.4,0.00041936,30]
[394548973,1763695265359,500.0,0.00041936,120]
[394548974,1763695265810,500.0,0.00041936,120]
[394548975,1763695265988,500.0,0.00041936,120]
[394548976,1763695266418,500.0,0.00041936,120]
[394548977,1763695266604,500.0,0.00041936,120]
[394548978,1763695267022,500.0,0.00041936,120]
[394548979,1763695267209,500.0,0.00041936,120]
[394548980,1763695267667,500.0,0.00041936,120]
[394548981,1763695267746,233.18181266,0.00041936,120]
[394548982,1763695267807,500.0,0.00041936,120]
[394548983,1763695267880,500.0,0.00041936,120]
[394548984,1763695268382,500.0,0.00041936,120]
[394548985,1763695269022,500.0,0.00041936,120]
[394548986,1763695269357,500.0,0.00041936,120]
[394548987,1763695269875,500.0,0.00041936,120]
[394548988,1763695270509,500.0,0.00041936,120]
[394548989,1763695270993,500.0,0.00041936,120]
[394548990,1763695271491,500.0,0.00041936,120]
[394548991,1763695272135,500.0,0.00041936,120]
[394548992,1763695273200,500.0,0.00041936,120]
[394548993,1763695273281,151.0,0.00016,2]
[394548994,1763695273438,500.0,0.00041936,120]
[394548995,1763695273609,151.0,0.00016,2]
[394548996,1763695278687,533.88981491,0.00041936,120]
[394548997,1763695328803,500.0,0.00041936,120]
[394548998,1763695329439,500.0,0.00041936,120]
[394548999,1763695330042,500.0,0.00041936,120]
[394549000,1763695330659,533.88981491,0.00041936,120]
[394549001,1763695330705,500.0,0.00041936,120]
[394549002,1763695331294,500.0,0.00041936,120]
[394549003,1763695331707,500.0,0.00041936,120]
[394549004,1763695331905,500.0,0.00041936,120]
[394549005,1763695332304,500.0,0.00041936,120]
[394549006,1763695332952,500.0,0.00041936,120]
[394549007,1763695333508,500.0,0.00041936,120]
[394549008,1763695334316,500.0,0.00041936,120]
[394549009,1763695334941,500.0,0.00041936,120]
[394549010,1763695335358,500.0,0.00041936,120]
[394549011,1763695335578,500.0,0.00041936,120]
[394549012,1763695335987,500.0,0.00041936,120]
[394549013,1763695336201,500.0,0.00041936,120]
[394549014,1763695336922,500.0,0.00041936,120]
[394549015,1763695337071,500.0,0.00041936,120]
[394549016,1763695337221,500.0,0.00041936,120]
[394549017,1763695337422,500.0,0.00041936,120]
[394549018,1763695337839,500.0,0.00041936,120]
[394549019,1763695338224,500.0,0.00041936,120]
[394549020,1763695338485,500.0,0.00041936,120]
[394549021,1763695338905,500.0,0.00041936,120]
[394549022,1763695339530,500.0,0.00041936,120]
[394549025,1763695351347,161.0,0.000356,120]
[394549027,1763695365504,161.73,0.000356,120]
[394549028,1763695386159,500.0,0.00041936,120]
[394549029,1763695389200,500.0,0.00041936,120]
[394549030,1763695389468,500.0,0.00041936,120]
[394549031,1763695390264,500.0,0.00041936,120]
[394549032,1763695390412,500.0,0.00041936,120]
[394549033,1763695390710,500.0,0.00041936,120]
[394549034,1763695390990,500.0,0.00041936,120]
[394549035,1763695391354,500.0,0.00041936,120]
[394549036,1763695391631,500.0,0.00041936,120]
[394549037,1763695392048,500.0,0.00041936,120]
[394549038,1763695392264,500.0,0.00041936,120]
[394549039,1763695392788,500.0,0.00041936,120]
[394549040,1763695392869,500.0,0.00041936,120]
[394549041,1763695393522,500.0,0.00041936,120]
[394549042,1763695394150,500.0,0.00041936,120]
[394549044,1763695446043,500.0,0.00041936,120]
[394549045,1763695446738,500.0,0.00041936,120]
[394549046,1763695447385,500.0,0.00041936,120]
[394549047,1763695448006,500.0,0.00041936,120]
[394549048,1763695449456,500.0,0.00041936,120]
[394549049,1763695450576,500.0,0.00041936,120]
[394549050,1763695451187,500.0,0.00041936,120]
[394549051,1763695451354,500.0,0.00041936,120]
[394549052,1763695451784,500.0,0.00041936,120]
[394549053,1763695452160,500.0,0.00041936,120]
[394549054,1763695452943,500.0,0.00041936,120]
[394549055,1763695454192,500.0,0.00041936,120]
[394549056,1763695454515,500.0,0.00041936,120]
[394549057,1763695455328,500.0,0.00041936,120]
[394549058,1763695456197,500.0,0.00041936,120]
[394549059,1763695456991,500.0,0.00041936,120]
[394549060,1763695457976,500.0,0.00041936,120]
[394549061,1763695458444,500.0,0.00041936,120]
[394549062,1763695459056,500.0,0.00041936,120]
[394549063,1763695459680,500.0,0.00041936,120]
[394549064,1763695476167,452.32362992,0.00041936,30]
[394549067,1763695507964,500.0,0.00041936,120]
[394549068,1763695508594,500.0,0.00041936,120]
[394549069,1763695508667,500.0,0.00041936,120]
[394549070,1763695509381,500.0,0.00041936,120]
[394549071,1763695509444,500.0,0.00041936,120]
[394549072,1763695509640,159.999991,0.00041936,120]
[394549073,1763695510653,537.7117504,0.00041936,30]
[394549074,1763695510854,500.0,0.00041936,120]
[394549076,1763695511824,592.27828677,0.00041936,60]
[394549077,1763695511869,402.05699432,0.00041936,30]
[394549078,1763695511971,783.58416073,0.00041936,30]
[394549079,1763695512030,500.0,0.00041936,120]
[394549080,1763695512570,1470.75161842,0.00041936,120]
[394549081,1763695512617,339.30970585,0.00041936,91]
[394549082,1763695512709,500.0,0.00041936,120]
[394549083,1763695513436,500.0,0.00041936,120]
[394549084,1763695514091,500.0,0.00041936,120]
[394549085,1763695514424,922.17087888,0.00041936,30]
[394549086,1763695515275,500.0,0.00041936,120]
[394549087,1763695515442,500.0,0.00041936,120]
[394549088,1763695515914,500.0,0.00041936,120]
[394549089,1763695516013,550.90416369,0.00041936,120]
[394549090,1763695516070,500.0,0.00041936,120]
[394549091,1763695516581,500.0,0.00041936,120]
[394549092,1763695517544,500.0,0.00041936,120]
[394549093,1763695517598,1047.13251857,0.00041936,30]
[394549094,1763695517844,500.0,0.00041936,120]
[394549095,1763695518938,500.0,0.00041936,120]
[394549096,1763695519388,652.78521378,0.00041936,120]
[394549097,1763695519481,500.0,0.00041936,120]
[394549098,1763695519931,500.0,0.00041936,120]
[394549099,1763695520094,500.49157815,0.00041936,120]
[394549100,1763695520430,500.0,0.00041936,120]
[394549101,1763695521008,600.37822058,0.00041936,120]
[394549102,1763695523047,778.01607421,0.00041936,30]
[394549103,1763695523242,1898.72291301,0.00041936,120]
[394549104,1763695524719,246.80247881,0.00041936,120]
[394549105,1763695526993,144841.56663369,0.00041936,30]
[394549106,1763695528006,1046.86478337,0.00041936,30]
[394549107,1763695528232,789.87603671,0.00041936,30]
[394549108,1763695531292,265.11765718,0.00041936,120]
[394549109,1763695532982,557.015162,0.00016119,2]
[394549110,1763695533341,572.18299883,0.00035616,120]
[394549111,1763695533912,1570.76818937,0.00041936,30]
[394549112,1763695536927,555.25642335,0.00041936,120]
[394549137,1763695539695,199.85798715,0.00041936,30]
[394549152,1763695540288,770.96551598,0.00041936,30]
[394549161,1763695540655,388.74739729,0.00041936,120]
[394549185,1763695542148,968.1446769,0.00041936,30]
[394549212,1763695543212,191.91533077,0.00041936,120]
[394549230,1763695543952,1011.76876978,0.00041936,120]
[394549271,1763695545773,178.82692851,0.00041936,120]
[394549274,1763695545887,301.56761893,0.00041936,120]
[394549358,1763695549270,903.08309011,0.00041936,30]
[394549369,1763695549768,239.56374037,0.00041936,30]
[394549400,1763695551020,181.72,0.00031507,120]
[394549519,1763695555956,2111.30338969,0.00041936,120]
[394549539,1763695556665,911.90919675,0.00041936,30]
[394549556,1763695557396,1469.10652896,0.00041936,120]
[394549565,1763695559529,750.01420738,0.00041936,30]
[394549566,1763695559660,329.72032697,0.00041936,90]
[394549567,1763695561658,843.83064959,0.00041936,120]
[394549568,1763695562515,1585.8700872,0.00041936,30]
[394549569,1763695563059,1170.12861139,0.00041936,120]
[394549570,1763695563448,1007.58400008,0.00041936,120]
[394549571,1763695565405,500.0,0.00041936,120]
[394549572,1763695565691,982.25544687,0.00041936,30]
[394549573,1763695565856,1115.38762894,0.00041936,120]
[394549574,1763695567604,367.88358974,0.00041936,120]
[394549575,1763695568539,500.0,0.00041936,120]
[394549576,1763695568718,1184.19955844,0.00041936,120]
[394549577,1763695569198,500.0,0.00041936,120]
[394549581,1763695570248,500.0,0.00041936,120]
[394549582,1763695570481,500.0,0.00041936,120]
[394549583,1763695570637,2119.62510351,0.00041936,120]
[394549584,1763695570787,591.22288545,0.00041936,30]
[394549585,1763695570848,219.83609792,0.00041936,30]
[394549586,1763695571125,500.0,0.00041936,120]
[394549587,1763695571760,500.0,0.00041936,120]
[394549588,1763695571913,636.59614783,0.00041936,120]
[394549589,1763695572400,500.0,0.00041936,120]
[394549590,1763695572784,281.18352895,0.00016119,2]
[394549591,1763695572820,151.0,0.00016119,2]
[394549592,1763695573034,500.0,0.00041936,120]
[394549593,1763695573541,814.69065159,0.00041936,120]
[394549594,1763695573618,500.0,0.00041936,120]
[394549595,1763695574272,500.0,0.00041936,120]
[394549596,1763695574329,500.0,0.00041936,120]
[394549597,1763695574977,500.0,0.00041936,120]
[394549598,1763695575629,500.0,0.00041936,120]
[394549604,1763695577814,470.27079337,0.00041936,120]
[394549626,1763695578677,1191.67215637,0.00041936,120]
[394549629,1763695578728,1027.44767799,0.00041936,30]
[394549638,1763695579047,209.1978219,0.00041936,120]
[394549742,1763695584109,1036.36060182,0.00041936,120]
[394549761,1763695584845,500.0,0.00041936,120]
[394549778,1763695585448,500.0,0.00041936,120]
[394549794,1763695586192,370.86800046,0.00041936,30]
[394549796,1763695586241,500.0,0.00041936,120]
[394549812,1763695586822,500.0,0.00041936,120]
[394549829,1763695587453,500.0,0.00041936,120]
[394549851,1763695588233,500.0,0.00041936,120]
[394549867,1763695588991,500.0,0.00041936,120]
[394549884,1763695589606,500.0,0.00041936,120]
[394549900,1763695590253,500.0,0.00041936,120]
[394549914,1763695590863,500.0,0.00041936,120]
[394549937,1763695591893,500.0,0.00041936,120]
[394549944,1763695592310,500.0,0.00041936,120]
[394549946,1763695592389,798.42174903,0.00041936,30]
[394549970,1763695594600,151.0,0.00041936,50]
[394549971,1763695595018,151.0,0.00041936,50]
[394549972,1763695595301,151.0,0.00041936,50]
[394549973,1763695595593,151.0,0.00041936,50]
[394549974,1763695595912,151.0,0.00041936,50]
[394549975,1763695596201,193.570103,0.00041936,50]
[394549977,1763695599156,151.0,0.00041936,50]
[394549978,1763695599292,151.0,0.00041936,50]
[394549979,1763695599592,151.0,0.00041936,50]